bitfinex/quotes_ETHUSD_20241105
["timestamp","ask_amount","ask_price","bid_price","bid_amount"]
[1730821475738,0.7683,2449.8,2449.5,4.08236]
[1730821475937,0.7683,2449.8,2449.3,4.08271]
[1730821476141,0.08058546,2449.7,2449.3,4.08266]
[1730821476349,0.84888546,2449.8,2449.3,4.08266]
[1730821476987,4.08215,2449.7,2449.1,8.16607]
[1730821477193,1.40298973,2449.8,2449.3,4.08278]
[1730821477482,0.84888546,2449.8,2449.2,4.16457144]
[1730821477792,4.93097546,2449.8,2449.2,4.16457144]
[1730821478277,4.93097546,2449.8,2449.3,4.08278]
[1730821479887,4.08215,2449.7,2449.2,4.08295]
[1730821480099,0.84888546,2449.8,2449.4,0.08357699]
[1730821480100,0.08058546,2449.6,2449.4,0.08357699]
[1730821480298,0.7536,2449.5,2449.3,0.08369081]
[1730821480597,0.7536,2449.5,2449.1,4.08304]
[1730821480964,0.7536,2449.5,2449.1,4.08301]
[1730821482264,1.3000594,2449.5,2448.3,1.28834639]
[1730821482464,0.7536,2449.5,2449.0,8.16639]
[1730821482677,4.83609,2449.5,2449.0,4.08319]
[1730821482922,0.7536,2449.5,2449.1,4.08304]
[1730821483625,0.7536,2449.5,2449.1,4.08313]
[1730821483922,0.7536,2449.5,2449.0,8.16638]
[1730821484091,0.08058546,2449.4,2449.0,4.08319]
[1730821484291,0.08058546,2449.4,2449.0,8.1664]
[1730821484492,0.08058546,2449.4,2449.0,4.08319]
[1730821484692,4.16325546,2449.4,2448.9,4.08346]
[1730821484886,4.16325546,2449.4,2448.8,8.16703]
[1730821485285,0.98052001,2449.4,2448.9,4.08346]
[1730821485488,0.08058546,2449.4,2448.9,4.08346]
[1730821486083,0.7536,2449.5,2449.1,4.08303]
[1730821486587,0.08058546,2449.4,2449.0,4.08321]
[1730821487326,0.08058546,2449.4,2448.9,4.08334]
[1730821487625,4.16322546,2449.4,2448.9,4.08334]
[1730821487820,4.16322546,2449.4,2448.7,4.08368]
[1730821487821,4.0828,2449.3,2448.7,4.08368]
[1730821487983,0.91288546,2449.2,2448.8,4.0836]
[1730821488491,0.8323,2449.2,2448.9,4.08346]
[1730821488711,0.8323,2449.2,2449.0,4.08318]
[1730821490177,0.8323,2449.2,2448.9,4.0834]
[1730821490378,0.8323,2449.2,2448.9,8.16678]
[1730821490624,0.8323,2449.2,2448.8,4.08361]
[1730821490798,0.91288546,2449.2,2448.8,4.08361]
[1730821490999,0.8323,2449.2,2448.7,4.08375]
[1730821491194,0.8323,2449.2,2448.9,4.08346]
[1730821491521,0.8323,2449.2,2448.9,4.08337]
[1730821491735,0.8323,2449.2,2449.0,4.08324]
[1730821491889,0.89738546,2449.5,2449.2,4.08285]
[1730821492087,0.8168,2449.5,2449.2,4.08285]
[1730821492486,0.7845,2449.7,2449.2,4.08285]
[1730821492789,0.08058546,2449.6,2449.3,0.08419458]
[1730821492998,0.08058546,2449.6,2449.2,4.08285]
[1730821493215,0.08058546,2449.6,2449.3,0.08419458]
[1730821493526,0.08058546,2449.6,2449.2,8.16572]
[1730821493685,0.08058546,2449.6,2449.4,0.08408077]
[1730821493891,0.08058546,2449.6,2449.3,0.08419458]
[1730821494123,0.86508546,2449.7,2449.3,4.08278]
[1730821494433,0.86508546,2449.7,2449.4,0.08404378]
[1730821494587,0.86508546,2449.7,2449.3,4.08278]
[1730821494784,0.86508546,2449.7,2449.4,0.08404378]
[1730821495016,0.86508546,2449.7,2449.3,4.08278]
[1730821495250,0.86508546,2449.7,2449.4,0.08404378]
[1730821495430,0.86508546,2449.7,2449.2,4.08285]
[1730821495634,0.86508546,2449.7,2449.3,0.0841576]
[1730821495947,4.63232,2449.6,2449.1,4.08304]
[1730821496114,0.08058546,2449.5,2449.4,0.08394671]
[1730821496314,0.08058546,2449.5,2449.1,4.08304]
[1730821496615,0.87328546,2449.5,2449.0,4.08318]
[1730821496836,0.87328546,2449.5,2449.1,0.0842882]
[1730821497545,0.87328546,2449.5,2449.1,4.1673282]
[1730821497912,0.7927,2449.5,2449.3,4.08269]
[1730821498112,0.7927,2449.5,2449.2,4.164496]
[1730821498311,0.7927,2449.5,2449.4,0.08396982]
[1730821498540,0.7927,2449.5,2449.3,0.08408364]
[1730821498896,0.7927,2449.5,2449.4,0.08396982]
[1730821500710,1.280195,2449.5,2449.0,4.08318]
[1730821500909,1.280195,2449.5,2448.7,3.0]
[1730821500910,0.7927,2449.5,2449.2,4.08296]
[1730821501150,0.7927,2449.5,2449.3,4.08278]
[1730821501328,0.7927,2449.5,2449.3,0.08394035]
[1730821501647,4.87518,2449.5,2448.8,4.08347]
[1730821501818,4.87518,2449.5,2449.0,4.08329]
[1730821501819,0.08058546,2449.4,2449.0,4.08329]
[1730821502020,0.08058546,2449.4,2449.1,0.08415878]
[1730821502226,0.87328546,2449.5,2449.1,4.16728878]
[1730821502412,1.88512178,2449.5,2449.1,0.08415878]
[1730821503063,4.63274,2449.4,2449.1,0.08415878]
[1730821503375,0.8051,2449.1,2448.6,4.08387]
[1730821503725,1.80717685,2449.4,2448.7,0.16636582]
[1730821503726,0.8051,2449.4,2448.7,0.16636582]
[1730821503978,2.09934964,2449.7,2449.5,4.08246]
[1730821503979,0.8051,2449.7,2449.5,4.08246]
[1730821504262,0.8051,2449.7,2449.6,0.08376534]
[1730821504440,0.8051,2449.7,2449.5,4.08246]
[1730821504763,0.8051,2449.7,2449.0,4.08329]
[1730821504764,0.8279472,2450.0,2449.6,0.16541299]
[1730821504975,0.0602472,2450.0,2449.9,4.08179]
[1730821505324,0.0602472,2450.0,2449.9,0.08325758]
[1730821505870,0.0602472,2450.0,2449.7,8.16401]
[1730821506027,0.0602472,2450.0,2449.5,4.08236]
[1730821506227,0.8145,2449.9,2449.6,0.08337249]
[1730821506459,0.53741747,2450.0,2449.6,0.08337249]
[1730821506460,0.35191747,2450.0,2449.6,0.08337249]
[1730821506675,3.90560088,2449.8,2449.6,0.08337249]
[1730821506835,0.55,2449.9,2449.3,4.08271]
[1730821507025,0.55,2449.9,2449.5,4.08236]
[1730821507433,1.25717685,2450.2,2449.6,0.08351574]
[1730821507782,1.30211061,2450.2,2449.7,4.08201]
[1730821508074,1.30211061,2450.2,2449.2,7.08288]
[1730821508075,1.30211061,2450.2,2449.6,4.08217]
[1730821508270,2.55928746,2450.2,2449.7,0.08334649]
[1730821508567,1.30211061,2450.2,2449.7,0.08334649]
[1730821508762,1.30211061,2450.2,2449.7,4.16545649]
[1730821508968,2.55928746,2450.2,2449.7,4.16545649]
[1730821509171,4.08148,2450.1,2449.7,0.08334649]
[1730821509466,0.8054,2450.0,2449.7,0.08334649]
[1730821509775,0.8054,2450.2,2449.8,4.08186]
[1730821509980,0.8054,2450.2,2450.0,4.0816]
[1730821510478,1.25717685,2450.4,2450.0,4.0816]
[1730821510479,1.3272,2450.4,2450.1,0.08289142]
[1730821510686,0.7772,2450.4,2450.3,4.08113]
[1730821510839,0.7772,2450.4,2450.2,4.08117]
[1730821510840,0.7772,2450.7,2450.2,4.08117]
[1730821511165,1.9714993,2450.7,2450.3,0.08252996]
[1730821511374,0.7772,2450.7,2450.5,4.08079]
[1730821511579,1.26217685,2450.8,2450.1,0.7605]
[1730821511580,0.005,2450.8,2450.4,4.08086]
[1730821511878,0.005,2450.8,2450.5,0.08202063]
[1730821513268,0.005,2450.8,2450.5,0.16363245]
[1730821513474,0.005,2450.8,2450.7,4.83306]
[1730821513650,0.005,2450.8,2450.7,4.91465918]
[1730821513853,0.005,2450.8,2450.7,4.16204999]
[1730821514462,0.005,2450.8,2450.7,0.08158999]
[1730821514664,0.005,2450.8,2450.7,4.16204999]
[1730821514957,0.005,2450.8,2450.7,0.08158999]
[1730821515196,1.3559,2450.8,2450.7,0.08158999]
[1730821515478,0.55,2450.4,2449.6,4.08219]
[1730821515657,0.55,2450.0,2449.4,4.08255]
[1730821515855,0.8016,2449.9,2449.3,4.89418]
[1730821516060,4.63208,2449.8,2449.0,4.08328]
[1730821516283,4.88409,2449.5,2448.8,8.16701]
[1730821516625,0.55,2449.8,2449.2,4.08293]
[1730821516743,0.55,2449.8,2449.1,4.08308]
[1730821516744,4.625481,2449.7,2449.1,4.08308]
[1730821517369,0.543341,2449.7,2449.3,4.08278]
[1730821517577,4.625511,2449.7,2449.1,4.08308]
[1730821517787,0.7993,2449.5,2449.1,4.08308]
[1730821517983,0.7993,2449.5,2449.0,4.08329]
[1730821518172,5.17591,2449.4,2448.7,4.83393]
[1730821518379,5.17591,2449.4,2448.7,4.08373]
[1730821518584,5.17591,2449.4,2448.7,4.08365]
[1730821518913,0.8294,2449.2,2448.6,4.08385]
[1730821519188,1.37256,2449.4,2448.7,4.83725]
[1730821519389,1.37256,2449.4,2449.0,4.08328]
[1730821519390,0.8294,2449.4,2449.0,4.08328]
[1730821519888,0.8294,2449.4,2448.9,8.16668]
[1730821520092,0.8294,2449.4,2448.9,4.08333]
[1730821520695,4.91206,2449.4,2448.8,3.0]
[1730821521218,0.8294,2449.4,2448.8,7.08351]
[1730821521357,0.8294,2449.4,2448.9,4.08344]
[1730821521554,0.8294,2449.4,2448.9,4.16469874]
[1730821521774,0.8294,2449.4,2448.9,0.08125874]
[1730821522380,0.55,2449.3,2448.9,0.08125874]
[1730821522581,0.55,2449.3,2448.9,4.16464874]
[1730821522853,0.55,2449.3,2449.0,0.08165328]
[1730821523284,4.625511,2449.7,2449.0,0.08165328]
[1730821523597,4.625511,2449.7,2449.1,4.0831]
[1730821523598,1.3425,2449.6,2449.1,4.0831]
[1730821524096,1.3425,2449.6,2449.2,0.08136549]
[1730821524456,4.08165,2450.0,2449.4,4.08256]
[1730821524764,4.08165,2450.0,2449.5,0.08098706]
[1730821524765,0.61224269,2450.0,2449.5,0.08098706]
[1730821524965,0.7836,2450.2,2449.6,4.08229]
[1730821525200,0.7836,2450.2,2449.6,4.16308468]
[1730821525356,0.7836,2450.2,2449.6,8.24528468]
[1730821525565,4.08163,2450.0,2449.6,0.08079468]
[1730821525856,0.408163,2449.9,2449.6,0.08079468]
[1730821526082,4.08157,2450.1,2449.5,4.08236]
[1730821526308,4.25717685,2450.5,2449.3,0.08164504]
[1730821526309,4.0809,2450.5,2449.8,4.08196]
[1730821526463,4.08112,2450.4,2449.8,4.08196]
[1730821526661,0.8146,2450.6,2449.9,0.08031007]
[1730821526862,4.0808,2450.5,2450.0,4.08153]
[1730821527055,4.0808,2450.5,2450.1,0.07997166]
[1730821527374,9.45023958,2450.2,2450.1,0.07997166]
[1730821527575,9.45023958,2450.2,2449.2,4.08287]
[1730821527576,0.7589,2449.8,2449.2,4.08287]
[1730821527774,4.84102,2449.8,2449.2,4.08287]
[1730821527967,0.55,2449.7,2449.3,0.08088195]
[1730821528300,4.63216,2449.7,2449.0,11.97436]
[1730821528458,9.253552,2449.7,2449.1,4.08298]
[1730821528654,4.08231,2449.6,2449.0,4.08315]
[1730821528867,4.08247,2449.5,2449.1,0.08113733]
[1730821529088,0.8262,2449.4,2449.0,4.08324]
[1730821529311,0.8262,2449.4,2449.1,0.08113733]
[1730821529884,1.317071,2449.4,2449.1,0.08113733]
[1730821530080,5.399701,2449.4,2448.8,4.08353]
[1730821530319,4.63283,2449.3,2448.9,0.08163307]
[1730821530620,4.08329,2449.0,2448.4,4.08419]
[1730821530923,4.08329,2449.0,2448.3,0.8087]
[1730821530924,4.08348,2448.9,2448.3,0.8087]
[1730821531119,0.7617,2448.8,2448.2,4.08448]
[1730821531482,0.7617,2448.8,2448.0,4.89356]
[1730821531483,4.08383,2448.7,2448.0,4.89356]
[1730821531703,5.09460258,2448.7,2447.8,4.08523]
[1730821531914,4.0844,2448.4,2447.8,4.0852]
[1730821532120,0.55,2448.3,2447.8,4.0852]
[1730821532523,0.55,2448.3,2447.9,4.0851]
[1730821532826,0.55,2448.4,2447.9,4.0851]
[1730821533128,9.17848258,2448.7,2448.0,4.85928]
[1730821533129,0.7649,2448.7,2448.0,4.85928]
[1730821533330,5.333664,2448.7,2448.1,4.08476]
[1730821533556,5.333664,2448.7,2448.1,4.16644699]
[1730821533820,4.08397,2448.6,2448.0,4.85923]
[1730821534122,4.08397,2448.6,2448.1,0.08168704]
[1730821534330,0.7649,2448.4,2447.8,4.08521]
[1730821534619,0.55,2448.3,2447.8,4.08519]
[1730821534989,0.55,2448.3,2447.9,4.08511]
[1730821535322,0.791,2448.7,2448.1,4.08467]
[1730821535509,0.791,2448.7,2448.3,4.08442]
[1730821535930,4.8748,2448.7,2448.1,4.08475]
[1730821536148,5.82328496,2448.7,2448.1,4.08475]
[1730821536718,5.82328496,2448.7,2447.9,4.08503]
[1730821536719,8.69401958,2448.6,2447.9,4.08503]
[1730821536929,1.73948496,2448.7,2448.0,0.08169539]
[1730821537117,4.87482,2448.7,2448.1,4.08465]
[1730821537316,0.791,2448.7,2448.2,4.08462]
[1730821537518,5.16004958,2448.6,2447.7,4.84643]
[1730821537827,0.8079,2448.3,2447.7,4.08533]
[1730821537999,4.085,2448.0,2447.3,8.17203]
[1730821538206,4.08566,2447.6,2447.1,0.00409725]
[1730821538394,4.08566,2447.6,2446.9,4.08663]
[1730821538395,0.55,2447.5,2446.9,4.08663]
[1730821539001,1.3579,2447.6,2447.1,4.08643]
[1730821539224,5.44353,2447.6,2447.1,4.08643]
[1730821539832,5.44353,2447.6,2446.8,4.08695]
[1730821539833,4.61004958,2447.4,2446.8,4.08695]
[1730821539984,0.544353,2447.5,2447.0,4.08659]
[1730821540210,0.8079,2447.6,2447.0,4.08651]
[1730821540389,9.15857958,2448.0,2447.3,4.08613]
[1730821540390,1.3708,2447.9,2447.3,4.08613]
[1730821540617,4.0853,2447.8,2447.2,4.08616]
[1730821540810,1.3708,2447.9,2447.4,0.08426236]
[1730821541063,5.45594,2447.9,2447.3,0.08437637]
[1730821541338,2.78590196,2447.9,2447.4,0.08426236]
[1730821541484,2.78590196,2447.9,2447.2,4.08616]
[1730821541685,0.7516,2448.2,2447.3,0.16609443]
[1730821541931,0.7516,2448.2,2447.7,4.08531]
[1730821542131,0.7516,2448.2,2447.8,4.08519]
[1730821542633,0.7516,2448.2,2447.8,4.16899644]
[1730821543141,4.08401,2448.6,2447.8,4.16899644]
[1730821543142,0.833,2448.5,2448.0,4.08493]
[1730821543431,0.833,2448.5,2448.1,4.08478]
[1730821543641,0.833,2448.5,2448.2,4.08452]
[1730821543935,4.0837,2448.8,2448.3,0.0833987]
[1730821543936,4.08382,2448.7,2448.3,0.0833987]
[1730821544134,4.08382,2448.7,2448.0,4.08493]
[1730821544135,4.08396,2448.6,2448.0,4.08493]
[1730821544293,4.08396,2448.6,2448.4,0.08336345]
[1730821544489,4.08396,2448.6,2448.0,4.08494]
[1730821544707,4.08396,2448.6,2447.9,4.08505]
[1730821544889,4.08396,2448.6,2448.0,0.08374048]
[1730821545121,4.08396,2448.6,2448.0,4.16860048]
[1730821545637,0.55,2448.7,2448.1,4.08466]
[1730821545994,0.55,2448.7,2448.2,4.16803007]
[1730821546422,4.63382,2448.7,2448.2,0.08342007]
[1730821546600,1.08995,2448.7,2448.2,0.08342007]
[1730821546924,0.55,2448.7,2448.2,4.16792007]
[1730821547113,0.7658,2448.8,2448.5,4.084]
[1730821547304,0.7658,2448.8,2448.6,0.08292743]
[1730821547505,0.7658,2448.8,2448.6,4.16686743]
[1730821547760,0.8103,2449.1,2448.6,4.16686743]
[1730821547937,1.299634,2449.1,2448.7,4.08373]
[1730821548099,0.8103,2449.1,2448.9,4.08336]
[1730821548404,0.7715,2449.5,2449.0,0.08247196]
[1730821548599,0.7715,2449.5,2448.9,4.08336]
[1730821548600,4.85409,2449.5,2448.9,4.08336]
[1730821549544,4.85409,2449.5,2448.9,8.16672]
[1730821549746,1.665147,2449.5,2449.0,0.08232856]
[1730821549924,0.7715,2449.5,2449.0,4.16559856]
[1730821550619,4.85399,2449.5,2449.0,0.08232856]
[1730821551051,4.63264,2449.4,2449.0,0.08232856]
[1730821551410,4.63264,2449.4,2448.7,4.08368]
[1730821551411,4.08282,2449.3,2448.7,4.08368]
[1730821551656,1.40970096,2449.3,2449.1,0.08200662]
[1730821551909,0.7715,2449.5,2448.4,0.7897]
[1730821552051,0.8213,2449.8,2449.4,4.08261]
[1730821552393,4.08138,2450.2,2449.5,4.16407531]
[1730821552394,0.8213,2450.1,2449.5,4.16407531]
[1730821552574,0.8213,2450.1,2449.7,4.0821]
[1730821553063,0.8213,2450.1,2449.8,0.08127931]
[1730821553388,0.8213,2450.1,2449.7,4.082]
[1730821553546,0.8004,2450.5,2449.9,0.08116554]
[1730821553745,0.488108,2450.4,2449.9,4.08176]
[1730821553971,0.8004,2450.5,2450.3,4.08102]
[1730821554188,0.8054,2450.8,2450.3,4.08102]
[1730821554373,0.8054,2450.8,2450.4,0.079464]
[1730821554595,0.8054,2450.8,2450.3,4.08102]
[1730821554891,0.8054,2450.8,2450.5,0.07917007]
[1730821555046,0.8054,2450.8,2450.4,0.07928378]
[1730821555266,0.8054,2450.8,2450.1,4.08139]
[1730821555462,0.488565,2450.7,2450.5,0.07917007]
[1730821555668,0.005,2450.8,2450.5,4.08074]
[1730821555904,0.005,2450.8,2450.6,0.07905636]
[1730821556770,0.005,2450.8,2450.7,4.16207146]
[1730821556967,0.005,2450.8,2450.7,12.6818637]
[1730821557202,0.0602472,2451.2,2451.1,4.0798]
[1730821557407,0.0602472,2451.2,2451.1,7.0798]
[1730821557589,0.0602472,2451.2,2451.1,7.2398632]
[1730821557966,0.0602472,2451.2,2451.1,7.15828796]
[1730821558168,0.0602472,2451.2,2451.1,7.23986889]
[1730821558578,0.0602472,2451.2,2451.1,7.15828796]
[1730821561414,0.0602472,2451.2,2451.1,7.23986845]
[1730821561573,0.0602472,2451.2,2451.1,7.24986845]
[1730821561769,0.0602472,2451.2,2451.1,7.16828796]
[1730821562506,7.2e-06,2451.2,2451.1,8.03575461]
[1730821562806,7.2e-06,2451.2,2451.1,7.95418796]
[1730821563009,7.2e-06,2451.2,2451.1,8.03575246]
[1730821563184,0.005,2451.6,2451.5,7.09913]
[1730821563507,0.005,2451.6,2451.5,11.70917958]
[1730821563805,0.005,2451.6,2451.5,7.15624934]
[1730821563968,0.005,2451.6,2451.5,7.23780932]
[1730821564169,0.005,2451.6,2451.5,8.02200932]
[1730821564412,0.005,2451.6,2451.5,7.94044934]
[1730821564883,0.005,2451.6,2451.5,8.01200752]
[1730821565066,0.005,2451.6,2451.5,7.93044934]
[1730821565668,0.005,2451.6,2451.5,8.01201434]
[1730821565976,0.005,2451.6,2451.5,7.93044934]
[1730821566693,0.7978,2452.2,2451.8,4.07861]
[1730821567074,0.7978,2452.2,2451.9,0.07551103]
[1730821567755,0.55,2452.1,2451.9,0.07551103]
[1730821568021,4.62815,2452.1,2452.0,0.07539745]
[1730821568312,0.7978,2452.2,2451.8,4.07862]
[1730821568529,0.7978,2452.2,2452.0,0.07539745]
[1730821568749,0.7978,2452.2,2451.9,0.07551103]
[1730821569013,0.7978,2452.2,2451.8,4.07862]
[1730821569014,0.005,2452.2,2452.1,0.07528388]
[1730821569222,0.005,2452.2,2452.0,0.07547124]
[1730821569371,0.005,2452.2,2451.7,3.0]
[1730821569709,0.005,2452.2,2452.1,0.07294522]
[1730821569874,0.005,2452.2,2451.7,7.07868]
[1730821570073,0.005,2452.2,2452.1,0.07294061]
[1730821570345,0.005,2452.2,2451.7,7.07868]
[1730821570541,0.005,2452.2,2451.7,3.0]
[1730821570718,0.005,2452.2,2451.8,0.07327214]
[1730821571056,0.005,2452.2,2451.6,4.07894]
[1730821571210,4.62826,2452.1,2451.9,0.07315855]
[1730821571410,4.62826,2452.1,2451.5,0.2]
[1730821571411,4.07882,2451.7,2451.5,0.2]
[1730821571643,4.07896,2451.6,2451.5,0.2]
[1730821571847,4.85566,2451.6,2451.5,0.2]
[1730821572054,5.749108,2451.6,2451.5,0.2]
[1730821572344,1.670148,2451.6,2451.5,0.2]
[1730821572557,5.749108,2451.6,2451.5,0.2]
[1730821572721,4.85566,2451.6,2451.5,0.2]
[1730821573128,0.7767,2451.6,2451.5,0.2]
[1730821574090,4.85566,2451.6,2451.5,0.2]
[1730821574245,0.7767,2451.6,2451.5,0.2]
[1730821574654,4.85566,2451.6,2451.5,0.2]
[1730821574944,6.299111,2451.6,2451.5,0.2]
[1730821576249,4.07885,2451.7,2451.5,0.2]
[1730821576455,4.07896,2451.6,2451.5,0.2]
[1730821577028,4.07885,2451.7,2451.5,0.2]
[1730821577358,4.07896,2451.6,2451.5,0.2]
[1730821578055,8.15776,2451.7,2451.5,0.2]
[1730821578563,5.41866,2451.6,2451.5,0.2]
[1730821581450,5.41866,2451.6,2451.5,0.27422522]
[1730821582052,1.3397,2451.6,2451.5,0.27422522]
[1730821582254,5.41866,2451.6,2451.5,0.27422522]
[1730821582420,5.41866,2451.6,2451.5,0.2]
[1730821582621,6.368411,2451.6,2451.5,0.2]
[1730821583123,0.7897,2451.6,2451.5,0.2]
[1730821583759,0.7897,2451.6,2451.5,0.27424824]
[1730821583760,4.86866,2451.6,2451.5,0.27424824]
[1730821584633,5.41866,2451.6,2451.5,0.2]
[1730821584833,8.42866,2451.6,2451.5,0.2]
[1730821586246,0.55,2450.5,2450.0,0.8248]
[1730821586686,0.8073,2450.6,2450.2,4.08127]
[1730821586845,4.08036,2450.8,2450.2,4.08118]
[1730821587043,8.16075,2450.8,2450.2,4.08118]
[1730821587281,4.08036,2450.8,2450.2,4.08118]
[1730821587486,4.08083,2450.5,2450.1,3.0]
[1730821587781,4.0806,2450.7,2450.1,3.0]
[1730821587968,4.08058,2450.7,2450.1,3.08162016]
[1730821588173,4.08104,2450.4,2449.8,4.08183]
[1730821588482,4.08097,2450.4,2449.8,4.08183]
[1730821588641,4.08118,2450.3,2449.8,4.08183]
[1730821588987,0.55,2450.5,2450.0,4.08153]
[1730821589195,4.6308,2450.5,2450.0,4.08153]
[1730821589371,0.55,2450.5,2450.0,4.08152]
[1730821590082,4.07989,2451.1,2450.2,0.796]
[1730821590254,4.07989,2451.1,2450.5,4.08068]
[1730821590786,8.15985,2451.1,2450.5,4.08068]
[1730821591082,4.07989,2451.1,2450.5,4.08068]
[1730821591241,0.7854,2451.2,2450.5,4.08068]
[1730821591444,0.7854,2451.2,2450.7,4.08044]
[1730821591841,4.86507,2451.2,2450.6,4.08062]
[1730821592043,0.7854,2451.2,2450.7,4.89995]
[1730821592654,4.86506,2451.2,2450.7,4.89995]
[1730821593076,0.7854,2451.2,2450.7,4.89995]
[1730821593274,4.86533,2451.7,2451.0,4.07984]
[1730821593473,4.86533,2451.7,2451.1,4.82969]
[1730821593801,4.07853,2451.9,2451.3,4.07936]
[1730821594001,4.07853,2451.9,2451.3,8.1587]
[1730821594207,0.7865,2452.0,2451.4,0.08158118]
[1730821594355,4.07847,2451.9,2451.4,4.07928]
[1730821594554,0.7865,2452.0,2451.5,4.07912]
[1730821594972,4.86483,2452.0,2451.4,4.07926]
[1730821595203,0.7865,2452.0,2451.4,4.07926]
[1730821595363,4.86481,2452.0,2451.4,4.07926]
[1730821595561,0.005,2452.2,2451.6,4.07884]
[1730821596652,0.41931472,2452.2,2451.5,0.8108]
[1730821596762,0.7792,2452.0,2451.5,3.8108]
[1730821596968,4.62873,2451.8,2451.2,4.07953]
[1730821597287,4.62897,2451.6,2451.1,3.0]
[1730821597490,4.0792,2451.5,2451.0,4.0798]
[1730821597693,4.9118,2451.5,2450.9,4.89087]
[1730821597864,0.55,2451.9,2451.4,4.0793]
[1730821598068,1.096081,2451.9,2451.4,4.0793]
[1730821598392,0.005,2452.2,2451.7,4.07879]
[1730821598594,0.005,2452.2,2451.8,4.07857]
[1730821598756,0.005,2452.2,2451.6,4.83985]
[1730821598958,0.005,2452.2,2451.6,0.761]
[1730821599163,4.08297,2452.2,2451.6,8.91873]
[1730821599387,0.005,2452.2,2451.7,4.07868]
[1730821599589,0.005,2452.2,2451.6,4.83986]
[1730821599799,4.08306,2452.2,2451.6,8.91872]
[1730821600097,0.005,2452.2,2451.8,4.07852]
[1730821600530,0.005,2452.2,2451.9,0.07401491]
[1730821601198,0.7739,2452.1,2451.9,0.07401491]
[1730821601396,0.005,2452.2,2451.8,4.0786]
[1730821601596,4.07814,2452.1,2451.9,0.07401491]
[1730821601795,0.55,2452.0,2451.5,4.07911]
[1730821602002,4.07905,2451.6,2451.0,4.86899]
[1730821602318,4.07943,2451.4,2450.8,4.08019]
[1730821602700,4.07941,2451.4,2450.8,4.1617854]
[1730821602884,4.07991,2451.1,2450.5,1.6408172]
[1730821603081,0.55,2451.1,2450.4,4.08085]
[1730821603328,4.07997,2451.0,2450.5,0.70459892]
[1730821603535,0.55,2451.1,2450.5,4.08067]
[1730821603697,0.55,2451.1,2450.5,4.1622774]
[1730821604030,4.62981,2451.1,2450.5,4.1622774]
[1730821604325,5.575937,2451.1,2450.4,4.08085]
[1730821604523,5.575937,2451.1,2450.5,4.08079]
[1730821604734,4.07997,2451.0,2450.4,4.08085]
[1730821605021,4.07997,2451.0,2450.4,3.0]
[1730821605237,4.07997,2451.0,2450.4,7.08093]
[1730821605725,8.16006,2451.0,2450.4,7.08093]
[1730821605885,4.07997,2451.0,2450.4,7.08093]
[1730821606089,8.16007,2451.0,2450.4,7.08093]
[1730821606438,4.08017,2450.9,2450.3,3.7891]
[1730821606587,4.08033,2450.8,2450.3,3.7891]
[1730821606783,0.55,2450.9,2450.4,4.08095]
[1730821607029,0.55,2450.9,2450.5,4.08077]
[1730821607391,4.83144,2451.2,2450.5,4.08077]
[1730821607392,4.83133,2451.2,2450.5,4.08077]
[1730821607727,4.07982,2451.1,2450.5,4.0807]
[1730821607926,5.4015476,2451.2,2450.5,8.16139]
[1730821608230,4.07991,2451.1,2450.5,4.08069]
[1730821608390,4.07998,2451.0,2450.5,8.16139]
[1730821608822,0.55,2451.1,2450.5,8.16139]
[1730821608995,4.08012,2451.0,2450.3,7.08103]
[1730821609334,4.84536,2450.6,2450.1,4.08138]
[1730821609533,4.84536,2450.6,2449.8,0.8171]
[1730821609700,0.7647,2450.6,2450.2,4.08129]
[1730821610039,4.84533,2450.6,2450.0,4.08147]
[1730821610334,0.55,2450.3,2449.8,4.08192]
[1730821610505,0.55,2450.3,2449.9,4.08178]
[1730821610704,0.55,2450.4,2449.9,4.08178]
[1730821610907,1.49764,2450.4,2449.9,4.08178]
[1730821611115,1.49764,2450.4,2450.0,4.0816]
[1730821611438,1.49764,2450.4,2449.8,4.08192]
[1730821611841,4.08115,2450.3,2449.8,4.08192]
[1730821612335,4.08146,2450.1,2449.6,4.08226]
[1730821612539,0.8107,2450.2,2449.8,4.08186]
[1730821612722,0.8107,2450.2,2449.9,4.08169]
[1730821612924,0.8107,2450.2,2449.8,4.08186]
[1730821613237,4.89201,2450.2,2449.6,4.08218]
[1730821613403,5.884089,2450.2,2449.6,4.08218]
[1730821614030,4.08114,2450.3,2449.6,0.08163508]
[1730821614246,4.6311,2450.4,2449.8,4.08181]
[1730821614531,4.08098,2450.4,2449.6,4.08221]
[1730821614738,4.08098,2450.4,2449.8,4.08195]
[1730821615034,4.08098,2450.4,2449.9,0.07725138]
[1730821615374,9.49013958,2450.9,2450.0,4.84283]
[1730821615543,8.16114,2450.7,2450.1,4.08145]
[1730821615715,4.08056,2450.7,2450.1,4.15847386]
[1730821615915,0.896069,2450.7,2450.2,4.08119]
[1730821616160,0.896069,2450.7,2450.3,4.08111]
[1730821616361,0.7999,2450.9,2450.3,4.15772185]
[1730821616512,0.7999,2450.9,2450.4,4.08095]
[1730821616849,4.88012,2450.9,2450.5,0.07643528]
[1730821617068,4.0803,2450.8,2450.5,0.07643528]
[1730821617213,0.48802,2450.7,2450.2,4.08129]
[1730821617551,0.48802,2450.7,2450.3,0.07666272]
[1730821617769,0.48802,2450.7,2450.3,4.15777272]
[1730821617918,0.55,2450.7,2450.2,4.08127]
[1730821618116,0.7999,2450.9,2450.4,0.07651674]
[1730821618321,4.08047,2450.7,2450.3,0.07663046]
[1730821618530,4.63073,2450.6,2450.5,0.07640302]
[1730821618857,4.08098,2450.4,2449.9,4.08168]
[1730821619058,0.55,2450.3,2449.5,4.08235]